Cogmind - Beta 16 @@@ ROGUE MODE // 2026.01.08 @ 21:30:04 Player: Ice_Kraken505 Result: Destroyed by D-53 Grenadier with Mini Grenade Launcher Performance ------------- Evolutions (0) 0 Regions Visited (2) 400 Robots Destroyed (27) 135 Value Destroyed (335) 335 Prototype IDs (1) 20 Alien Tech Used (0) 0 Bonus (0) 0 TOTAL SCORE: 890 Bonus ------- None Cogmind --------- Core Integrity 0/250 Matter 297/300 Energy 99/100 System Corruption 0% Temperature Cool (0) Movement Rolling (95) Ox1 Location -10/Mines Parts ------- > --- POWER (1) -------- (None) > --- PROPULSION (2) --- Wheel > --- UTILITY (2) ------ Large Storage Unit > --- WEAPON (2) ------- (None) > --- INVENTORY (15) --- Ion Engine Light Ion Engine Wheel Hover Unit Heat Sink Large Storage Unit Seismic Detector ECM Suite Utility Shielding EMP Blaster EMP Blaster Mining Laser Peak State ------------ > --- POWER ------------ Ion Engine > --- PROPULSION ------- Improved Flight Unit Improved Flight Unit > --- UTILITY ---------- Large Storage Unit Seismic Detector > --- WEAPON ----------- EM Pulse Gun Small Laser > --- INVENTORY -------- Light Ion Engine Wheel Wheel Wheel Wheel Compact Wheel Large Storage Unit Seismic Detector Trap Extractor Medium Laser EMP Blaster Mining Laser [Rating: 12] Favorites ----------- Power Ion Engine Engine Ion Engine Propulsion Wheel Wheel Wheel Flight Unit Improved Flight Unit Utility Seismic Detector Device Seismic Detector Storage Large Storage Unit Weapon EM Pulse Gun Energy Gun EM Pulse Gun Ballistic Gun Assault Rifle Ballistic Cannon Battle Cannon Launcher EMP Blaster Build | -11 -10 -10 ------- Run | Yrd Mat Min Slots Evolved . | . . . Power . | . . . Propulsion . | . . . Utility . | . . . Weapon . | . . . Parts Attached 22 | 10 8 4 Power 3 | 1 2 . Engine 3 | 1 2 . Core . | . . . Reactor . | . . . Propulsion 7 | 3 2 2 Treads . | . . . Leg . | . . . Wheel 5 | 3 . 2 Hover . | . . . Flight 2 | . 2 . Utility 5 | 3 2 . Device 3 | 2 1 . Storage 2 | 1 1 . Processor . | . . . Hackware . | . . . Protection . | . . . Artifact . | . . . Weapon 7 | 3 2 2 Energy Gun 3 | 3 . . Energy Cannon . | . . . Ballistic Gun 1 | . 1 . Ballistic Cannon 1 | . . 1 Launcher 2 | . 1 1 Special Weapon . | . . . Impact Weapon . | . . . Slashing Weapon . | . . . Piercing Weapon . | . . . Special Melee Weapon . | . . . Unidentified Prototypes 1 | . 1 . Parts Lost 8 | . . 8 Power 1 | . . 1 Propulsion 3 | . . 3 Utility 1 | . . 1 Weapon 3 | . . 3 Highest Loss Streak 6 | . . 6 To Critical Strikes . | . . . Average Backups 8 | 2 9 12 Power . | . . 1 Propulsion 2 | . 2 2 Utility 2 | . 2 5 Weapon 3 | 1 3 3 Tool/Special . | . . . Unused Backups 9 | 1 . 8 Power 1 | . . 1 Propulsion 1 | 1 . . Utility 5 | . . 5 Weapon 2 | . . 2 Tool/Special . | . . . Average Slot Usage (%) 98 | . 99 97 Engine 14 | . 14 14 Wheel 27 | . 27 26 Device 13 | . 14 13 Storage 13 | . 13 14 Energy Gun 17 | . 25 7 Ballistic Gun 6 | . 1 13 Ballistic Cannon 2 | . . 5 Launcher 1 | . 1 . Peak Build Rating 12 | 7 12 9 Average Rating 7 | 6 7 8 On Entrance 5 | . 7 8 Avg Prop Armor Cover (%) . | . . . Naked Turns . | . . . Heaviest Build 32 | 14 32 31 Greatest Support 26 | 26 26 20 Greatest Overweight (x) 5 | . 5 2 Average Overweight (x) . | . . 1 Largest Inventory Capacity 15 | 8 15 15 Average Capacity 12 | 7 14 15 Most Carried 15 | 5 15 14 Average Carried 9 | 2 9 12 Final Capacity 15 | 8 15 15 Final Carried 14 | 5 14 12 Class Distribution -------------------- 100% | Mutant Dominant Class ---------------- Mutant | -10/Materials Mutant | -10/Mines Resources | -11 -10 -10 ----------- Run | Yrd Mat Min Matter Collected 617 | 370 128 119 Remotely 56 | 56 . . Salvage Created 711 | 201 385 125 Parts 61 | 18 33 10 Haulers Intercepted . | . . . Recyclers Shooed 2 | . 1 1 Parts Field Recycled . | . . . Retrieved Matter . | . . . Parts Self-Destructed . | . . . Prevented . | . . . Parts Restored . | . . . Kills | -11 -10 -10 ------- Run | Yrd Mat Min Combat Hostiles Destroyed 13 | . 8 5 Guns 9 | . 6 3 Cannons 2 | . . 2 AOE 2 | . 2 . Classes Destroyed 8 | 3 5 . Worker 2 | 2 . . Builder 3 | . 3 . Tunneler 5 | 5 . . Recycler 2 | 1 1 . Operator 1 | . 1 . Watcher 1 | . 1 . Swarmer 9 | . 6 3 Grunt 4 | . 2 2 Best Kill Streak 7 | 4 7 2 Combat Bots Only 3 | . 3 2 Max Kills in Single Turn 3 | 1 3 1 Gunslinging . | . . . Exploded 2 | . 2 . Melee . | . . . Uniques/NPCs Destroyed . | . . . Combat | -11 -10 -10 -------- Run | Yrd Mat Min Hostile Shots Fired 71 | . 20 51 Missed 14 | . 6 8 Hits 57 | . 14 43 Melee 3 | . . 3 Projectile 54 | . 14 40 AOE 8 | . . 8 Damage Taken 1028 | 38 142 848 Core 250 | 19 26 205 Absorbed by Shields . | . . . Core Remaining (%) 92 | 92 . . Volleys Fired 57 | 19 19 19 Largest 2 | 2 2 2 Hottest 90 | 80 90 70 Shots Fired 114 | 38 38 38 Gun 103 | 38 35 30 Cannon 7 | . . 7 Launcher 4 | . 3 1 Special . | . . . Kinetic 26 | . . 26 Thermal 49 | 19 19 11 Explosive . | . . . Electromagnetic 39 | 19 19 1 Robot Hit Streak 9 | 9 5 6 Robot Miss Streak 6 | 5 4 6 Penetration Max . | . . . Secondary Targets 1 | . 1 . Max Gunslinging Chain 1 | . 1 . Shots Hit Robots 62 | 22 19 21 Core Hits 36 | 9 18 9 Critical Kills . | . . . Critical Parts Destroyed . | . . . Critical Strikes . | . . . Melee Attacks . | . . . Impact . | . . . Slashing . | . . . Piercing . | . . . Sneak Attacks . | . . . Combat Hostiles . | . . . Follow-up Attacks . | . . . Damage Inflicted 1188 | 335 502 351 Guns 744 | 243 260 241 Cannons 50 | . . 50 Explosions 351 | 92 230 29 Melee . | . . . Ramming 43 | . 12 31 Kinetic 191 | . . 191 Thermal 479 | 191 188 100 Explosive . | . . . Electromagnetic 475 | 144 302 29 Impact . | . . . Slashing . | . . . Piercing . | . . . Highest Corruption . | . . . Average Corruption . | . . . Corruption Purged . | . . . Corruption Blocked . | . . . Overload Shots . | . . . Overflow Damage 3 | . 3 . Projectiles . | . . . Explosions 3 | . 3 . Melee . | . . . Knockbacks 1 | . 1 . Impact 1 | . 1 . Kinetic . | . . . Secondary . | . . . Self-Inflicted Damage 79 | 38 27 14 Shots 2 | 1 1 . Rammed 5 | . 2 3 Targets Rammed 5 | . 2 3 Kicked . | . . . Crushed . | . . . Highest Temperature 252 | 90 93 252 Average Temperature 57 | 34 32 130 Received Heat Transfer 197 | . 24 173 Siege Activations . | . . . Martial Activations . | . . . Shielding Activations . | . . . Robots Disrupted . | . . . Combat Hostiles . | . . . Robots Corrupted . | . . . Combat Hostiles . | . . . Parts Fried . | . . . Impact Corruptions . | . . . Robots Melted . | . . . Combat Hostiles . | . . . Parts Melted 1 | . . 1 Heat Transferred 1043 | 275 472 296 Parts Sabotaged . | . . . Parts Stolen . | . . . Parts Stripped . | . . . Power Chain Reactions 4 | 2 2 . Alert | -11 -10 -10 ------- Run | Yrd Mat Min Maximum Alert Level . | . . . Low Security (%) 100 | 100 100 100 Level 1 . | . . . Level 2 . | . . . Level 3 . | . . . Level 4 . | . . . Level 5 . | . . . High Security . | . . . Max Security . | . . . Peak Influence 130 | 10 130 65 Initial 22 | . . 22 Average 37 | 1 70 24 Influence Increases 412 | 40 237 135 Destroy 0b10 Robot/C 260 | . 160 100 Destroy 0b10 Robot/NC 70 | 40 30 . Destroy Leader 62 | . 42 20 Destroy Structure 5 | . 5 . Lose Combat Pursuer 15 | . . 15 Influence Decreases 412 | 40 180 192 Entered New Map 35 | . . 35 Time Decay 322 | 40 180 102 Lost Part 55 | . . 55 Squads Dispatched 3 | . 3 . Investigation 2 | . 2 . Extermination . | . . . Reinforcement 1 | . 1 . Assault . | . . . Garrison . | . . . Intercept . | . . . Searches Triggered . | . . . Construction Impeded . | . . . Haulers Reinforced . | . . . Active Scanning Responses . | . . . Cargo Convoy Interrupts . | . . . Stealth | -11 -10 -10 --------- Run | Yrd Mat Min Distress Signals . | . . . Communications Jammed . | . . . Distress Signals . | . . . Times Spotted 26 | . 12 14 Peak Tracking Total 9 | . 3 9 Tactical Retreats 1 | . . 1 Traps | -11 -10 -10 ------- Run | Yrd Mat Min Traps Triggered 3 | . 3 . Indirectly 2 | . 2 . Trap Hack Attempts . | . . . Triggered . | . . . Disarmed . | . . . Reprogrammed . | . . . Reused . | . . . Traps Extracted . | . . . Installed . | . . . Triggered . | . . . Machines | -11 -10 -10 ---------- Run | Yrd Mat Min Machines Disabled 3 | . 3 . Max in Single Turn 2 | . 2 . Machines Repaired . | . . . Machines Dismantled . | . . . Machines Sabotaged . | . . . Overloaded Fab Kills . | . . . Hacking | -11 -10 -10 --------- Run | Yrd Mat Min Machines Accessed 3 | . 3 . Terminals 2 | . 2 . Fabricators . | . . . Repair Stations . | . . . Recycling Units 1 | . 1 . Scanalyzers . | . . . Garrison Access . | . . . Total Hacks 12 | . 12 . Successful 6 | . 6 . Failed 6 | . 6 . Catastrophic 1 | . 1 . Database Lockouts . | . . . Manual 5 | . 5 . Terminals 9 | . 9 . Fabricators . | . . . Repair Stations . | . . . Recycling Units 3 | . 3 . Scanalyzers . | . . . Garrison Access . | . . . Terminal Hacks 3 | . 3 . Branch Access Points 1 | . 1 . Emergency Access Points 1 | . 1 . Zone Layout 1 | . 1 . Fabricator Hacks . | . . . Repair Station Hacks . | . . . Recycling Unit Hacks 1 | . 1 . Report Inventory 1 | . 1 . Scanalyzer . | . . . Garrison Access Hacks . | . . . Unauthorized Hacks 2 | . 2 . Terminals 2 | . 2 . Track 2 | . 2 . Fabricators . | . . . Repair Stations . | . . . Recycling Units . | . . . Scanalyzers . | . . . Garrison Access . | . . . Data Cores Recovered . | . . . Used . | . . . Hacking Detections 3 | . 3 . Full Trace Events 2 | . 2 . Feedback Events . | . . . Feedback Blocked . | . . . Robot Schematics Acquired . | . . . Robots Built . | . . . Authchips . | . . . Time . | . . . Total Robot Build Rating . | . . . Part Schematics Acquired . | . . . Parts Built . | . . . Authchips . | . . . Time . | . . . Total Part Build Rating . | . . . Part Studies Acquired . | . . . Parts Repaired . | . . . Time . | . . . Parts Recycled . | . . . Recycled Matter . | . . . Retrieved Matter . | . . . Retrieved Components . | . . . Parts Scanalyzed . | . . . Part Schematics Acquired . | . . . Parts Damaged . | . . . Bothacking | -11 -10 -10 ------------ Run | Yrd Mat Min Used RIF Installer . | . . . Robots Hacked . | . . . Non-combat . | . . . Combat . | . . . Robot Hacks Applied . | . . . Relay Couplers Released . | . . . Fabnet Peak Effective % . | . . . Robots Rewired . | . . . Allies Hacked . | . . . Hacks Repelled . | . . . Allies | -11 -10 -10 -------- Run | Yrd Mat Min Total Allies . | . . . Largest Group . | . . . Highest-Rated Group . | . . . Highest-Rated Ally . | . . . Total Orders . | . . . Ally Attacks . | . . . Total Damage . | . . . Kills . | . . . Allies Corrupted . | . . . Allies Melted . | . . . Intel | -11 -10 -10 ------- Run | Yrd Mat Min Active Infowar (turns) 816 | 148 362 306 Seismic 816 | 148 362 306 Robot Analysis Total . | . . . Derelict Logs Recovered 2 | . . 2 Drone Launches . | . . . Drone Recoveries . | . . . Exploration | -11 -10 -10 ------------- Run | Yrd Mat Min Turns Passed 893 | 217 364 312 Spaces Moved 621 | 155 241 225 Core 27 | 27 . . Treads . | . . . Legs . | . . . Wheels 593 | 128 240 225 Hover . | . . . Flight 1 | . 1 . Fastest Speed 50 | 50 90 95 Average Speed 95 | 79 104 95 Slowest Speed 395 | 90 395 110 Overloaded Moves . | . . . Propulsion Burnouts . | . . . Robots Hopped . | . . . Potential Cave-ins 2 | . . 2 Cave-ins Triggered . | . . . Exploration Rate (%) 32 | 6 34 58 Regions Visited 2 Branch Regions 1 Pre-discovered Areas 1 | . . 1 Known Exits Taken 1 | . 1 . Unknown Exits Taken 1 | 1 . . Scrap Searched 1 | . . 1 Spaces Dug . | . . . Terrain Destroyed 11 | 6 5 . Melee . | . . . Projectile . | . . . AOE 11 | 6 5 . Terrain Rammed . | . . . Walls Destroyed . | . . . Machines Disabled . | . . . Actions | -11 -10 -10 --------- Run | Yrd Mat Min Total 805 | 206 312 287 Wait 38 | . 8 30 Move 619 | 154 240 225 Hop . | . . . Pick Up 34 | 13 18 3 Fast Attach 3 | 1 2 . Attach 15 | 7 4 4 Detach 4 | 1 2 1 Swap 19 | 9 10 . Drop 11 | 2 7 2 Fire 57 | 19 19 19 Melee . | . . . Ram 5 | . 2 3 Kick . | . . . Crush . | . . . Escape Stasis . | . . . Rewire . | . . . Trap . | . . . Miscellaneous . | . . . Route ------- -11/Scrapyard -10/Materials -10/Mines History --------- Turn | Location | Event 44 | -11/Scrapyard | Discovered new exit (range 13) 218 | -11/Scrapyard | Entered Materials 307 | -10/Materials | Build established: Mutant 377 | -10/Materials | Discovered new exit (range 10) 450 | -10/Materials | Identified exit to Mines 582 | -10/Materials | Entered Mines 748 | -10/Mines | A weapon hastily lodged in a ceiling crevice suddenly fell to the ground 751 | -10/Mines | Learned location of 1 exit from Materials 797 | -10/Mines | Core integrity fell below 50% 859 | -10/Mines | Assembled infested the area 892 | -10/Mines | Core integrity fell below 20% 894 | -10/Mines | Learned location of Storage (-7) 894 | -10/Mines | Destroyed by D-53 Grenadier with Mini Grenade Launcher Last Messages --------------- Knocked back. C-45 Heavy ARC bursts open, deploying its payload. D-53 Grenadier unfolds itself. Battle Cannon destroyed. as-65522 destroyed. as-53245 destroyed. Seismic Detector destroyed. Assault Rifle destroyed. Ion Engine destroyed. Wheel destroyed. as-85319 destroyed. A derelict emerges from the shadows: "Are any of them following you? I'm here trying to lose some heat after our second raid on Storage failed. Whatever you do stay away from that place, they've tightened security following our previous successful raids." World map updated: -7/Storage. EMP Blaster destroyed. Map ----- +----------------------------------------------------+ | ???????????????# ############### ##???? | | ???????????????# ##??? | | ???????????# #??? | | ???????????## ###???# #### | | ?????????????## #????## | | ?????????????# ### #???## | | ?????????????# ###?## #???# #### | | ????????????# ##????# ##???# [ #??# | | ????????????# ##?????# ##???## =##??# | | ???????????# ##??????# ##???### #???# | | ???????????# ????????# #?????## ##???? | | ??????????# ###????????# #??????# ###### | | ????????? #???????????# ##??????# ### | | ???????? ????????????# ##???????## ###?# | | ???????# ?????????????# ######????# ##### | | ???????# ?????????????# #????# """ | | ???????## ??????????????# #### #????# ##### """ | | ????????# ???????????????# #??# #????# #???# """ | | ???????????????????????#?# #??# #????# #???##### | | ?????????????????????## ? ##?# #????# #???????? | | ?????????????????????# #?# #?#### #???????? | | ?????????????????????# #?# ### ## ####### | | ????????????????????## #?# ## | | ??????????????????### ## #### #### # | | ??????????????????# g ###### #??????? | | ???????????????????? ## @ #????## ##??????? | | ???????????????????### #?????## ##???????? | | ????????????????????# #?????## #????????? | | ???????????????????## #????## ##???????? | | ???????????????????# #????# #???????? | | ???????????????????# a #???## ##??????? | | ???????????????????# a #??## ## #? | | ???????????????????# d #?## #? | | ?????????????????? a# ### d##?# # #?? | | ?????????????????## a #??##%#?## #???? | | ??????????????????# ????# ### #???? | | ??????????????????## ????#!%! ##???? | | ???????????????????## ????# * #????? | | ????????????????????##?????########## ## #????? | | ????????????????????????????????????####?# #????? | | ??????????????????????????????????????????# #????? | | ???????????????????????????????????????????##????? | | ?????????????????????????????????????????????????? | | ?????????????????????????????????????????????????? | | ?????????????????????????????????????????????????? | | ?????????????????????????????????????????????????? | | | | | | | | | +----------------------------------------------------+ Best States ------------- Heat Dissipation 25 Energy Generation 10 Energy Capacity 250 Matter Stores 300 Matter Capacity 300 Sight Range 16 Terrain Scan Density 10 Evasion (%) 50 Item Schematics ----------------- None Robot Schematics ------------------ None Fabricated ------------ Nothing Repaired ---------- Nothing Studied --------- None Alien Tech Used ----------------- None Achievements -------------- None Challenges ------------ None Game ------ Seed SystemReactionKatana Manual? 0 Play Time 00:19:54 Cumulative 17.3 hours Start 2026.01.08 @ 21:11:15 End 2026.01.08 @ 21:30:04 Sessions 1 Manual Loads 0 Difficulty Rogue Special Mode None Game No. 20 Rogue 20 Adventurer 0 Explorer 0 Win Type - Total 0 Types 0/0/0/0/0/0/0/0/0/0 Lore% 11 Gallery% 17 Achievement% 12 Wizard Run 0 Options --------- Layout 1 ASCII 0 Keyboard 1 Movement Arrows Keybinds 0 Fullscreen 1 Font 24/Smallcaps Map View 50x35 Zoom Use 0% Tactical HUD 0 Map Filters NONE Filters NONE Steam 1 RUN: 6804745b-05bc-4ccc-9d93-ffc7816e6d44